fUSD/lending_fUSD_20240125
["ID","MTS","AMOUNT","RATE_DAILY","PERIOD"]
[312698534,1706155844434,-2681.30267079,0.0004,4]
[312698535,1706155844444,-5532.82183427,0.0004,5]
[312698536,1706155844453,-961.96985758,0.0004,5]
[312698537,1706155844462,-150.0,0.00040008,2]
[312698538,1706155844471,-150.0,0.00040013,2]
[312698539,1706155844480,-1836.39,0.0004002,5]
[312698540,1706155844490,-150.0,0.00040026,2]
[312698541,1706155844499,-150.0,0.00040028,2]
[312698542,1706155844508,-150.0,0.00040032,2]
[312698543,1706155844517,-150.0,0.00040038,2]
[312698544,1706155844526,-299.07562492,0.00040041,2]
[312698545,1706155844535,-150.0,0.00040041,2]
[312698546,1706155844544,-150.0,0.0004005,2]
[312698547,1706155844553,-150.0,0.00040053,2]
[312698548,1706155844701,-150.0,0.00040055,2]
[312698549,1706155844713,-150.0,0.00040067,2]
[312698550,1706155844722,-150.0,0.00040075,2]
[312698551,1706155844731,-150.0,0.00040078,2]
[312698552,1706155844740,-150.0,0.00040082,2]
[312698553,1706155844749,-150.0,0.00040085,2]
[312698554,1706155844758,-150.0,0.00040087,2]
[312698555,1706155844768,-474.96743432,0.00040096,30]
[312698556,1706155844777,-150.0,0.00040099,2]
[312698557,1706155844786,-150.0,0.0004011,2]
[312698558,1706155844795,-150.0,0.00040113,2]
[312698559,1706155844804,-150.0,0.00040122,2]
[312698560,1706155844814,-150.0,0.00040136,2]
[312698561,1706155844825,-1500.0,0.00040137,2]
[312698562,1706155844838,-150.0,0.00040138,2]
[312698563,1706155844847,-150.0,0.00040142,2]
[312698564,1706155844858,-234.63597224,0.00040146,2]
[312698565,1706155844868,-150.0,0.00040148,2]
[312698566,1706155844878,-150.0,0.00040152,2]
[312698567,1706155844887,-150.0,0.00040161,2]
[312698568,1706155844897,-150.0,0.00040165,2]
[312698569,1706155844907,-150.0,0.00040167,2]
[312698570,1706155844917,-150.0,0.00040167,2]
[312698571,1706155844927,-150.0,0.00040172,2]
[312698572,1706155844938,-150.0,0.00040173,2]
[312698573,1706155844947,-150.0,0.00040187,2]
[312698574,1706155844957,-176.54,0.00040188,2]
[312698575,1706155844967,-150.0,0.00040194,2]
[312698576,1706155844977,-300.0,0.000402,2]
[312698577,1706155844986,-150.0,0.00040201,2]
[312698578,1706155844995,-150.0,0.00040203,2]
[312698579,1706155845005,-150.0,0.00040209,2]
[312698580,1706155845014,-150.0,0.00040212,2]
[312698581,1706155845026,-150.0,0.0004022,2]
[312698582,1706155845038,-150.0,0.00040223,2]
[312698583,1706155845047,-150.0,0.00040224,2]
[312698584,1706155845057,-150.0,0.00040225,2]
[312698585,1706155845067,-150.0,0.00040226,2]
[312698586,1706155845078,-150.0,0.00040239,2]
[312698587,1706155845087,-150.0,0.0004024,2]
[312698588,1706155845096,-707.0,0.00040255,5]
[312698589,1706155845106,-150.0,0.00040263,2]
[312698590,1706155845115,-300.0,0.00040264,2]
[312698591,1706155845125,-150.0,0.00040268,2]
[312698592,1706155845136,-1349.27729518,0.00040268,5]
[312698593,1706155845146,-150.0,0.00040282,2]
[312698594,1706155845156,-150.0,0.00040288,2]
[312698595,1706155845166,-150.0,0.00040289,2]
[312698596,1706155845176,-5386.0,0.0004029,2]
[312698597,1706155845185,-3376.0,0.0004029,2]
[312698598,1706155845196,-150.0,0.00040299,2]
[312698599,1706155845206,-295.87,0.000403,7]
[312698600,1706155845215,-3541.56926478,0.00040303,2]
[312698601,1706155845226,-11132.7328681,0.00040306,2]
[312698602,1706155845236,-4247.0452473,0.00040306,2]
[312698603,1706155845245,-90022.74932497,0.00040306,2]
[312698604,1706155845260,-3130.14142335,0.00040306,2]
[312698605,1706155845272,-9271.89499077,0.00040306,2]
[312698606,1706155845291,-150.0,0.00040215,2]
[312698607,1706155845300,-787.480368,0.00040306,2]
[312698608,1706155845312,-1560.0,0.00040306,2]
[312698619,1706155846315,-150.0,0.00040169,2]
[312698620,1706155846329,-150.0,0.00040171,2]
[312698621,1706155846344,-150.0,0.00040218,2]
[312698622,1706155846358,-150.0,0.00040221,2]
[312698623,1706155846372,-25.59015434,0.0004023,2]
[312698627,1706155846462,-124.40984566,0.0004023,2]
[312698628,1706155846476,-150.0,0.00040264,2]
[312698629,1706155846491,-150.0,0.00040272,2]
[312698630,1706155846506,-150.0,0.00040273,2]
[312698631,1706155846521,-59.30014934,0.000403,2]
[312698632,1706155846539,-90.69985066,0.000403,2]
[312698633,1706155846555,-771.86315234,0.00040306,2]
[312698634,1706155846572,-746.89100001,0.00040306,2]
[312698635,1706155846610,-2152.46439114,0.00040306,2]
[312698636,1706155846634,-1500.0,0.00040306,2]
[312698637,1706156390196,355.52,0.00020874,2]
[312698642,1706157032059,-524.52603564,0.00022698,2]
[312698643,1706157032069,-93.14955709,0.00022699,2]
[312698644,1706157032082,-69.12134256,0.00022699,2]
[312698645,1706157032092,-150.0,0.00022798,2]
[312698646,1706157032102,-545.90153724,0.00022799,2]
[312698647,1706157032113,-318.3432,0.00022799,2]
[312698648,1706157032201,-135.75526276,0.00022799,2]
[312698649,1706157032211,-413.59552995,0.00022799,2]
[312698650,1706157032250,-315.2812933,0.00022799,2]
[312698651,1706157032266,-6461.72407675,0.00022799,2]
[312698652,1706157032276,-1559.7628565,0.00022799,2]
[312698653,1706157032285,-19950.59562988,0.00022889,2]
[312698654,1706157032295,-100000.0,0.00022899,2]
[312698655,1706157032304,-50953.20911938,0.00022899,2]
[312698656,1706157032415,-3400.0,0.00022899,2]
[312698657,1706157032426,-7266.00620357,0.00022899,2]
[312698658,1706157032438,-1906.08177036,0.00022899,2]
[312698659,1706157032449,-1542.6151615,0.00022899,2]
[312698660,1706157032466,-861.30312776,0.00022899,2]
[312698666,1706157038126,-205.0,0.00022386,2]
[312698667,1706157038135,-15365.04461585,0.00022899,2]
[312698668,1706157038184,-5628.37594026,0.00022899,2]
[312698669,1706157038242,-4447.81020263,0.00022899,2]
[312698683,1706157043374,-1501.28263316,0.00022899,2]
[312698684,1706157043387,-1144.30247433,0.00022899,2]
[312698688,1706157043504,-998.486475,0.00022899,2]
[312698689,1706157043555,-459.68648069,0.00022899,2]
[312698690,1706157043567,-1546.45892073,0.00022899,2]
[312698691,1706157043665,-553.59941639,0.00022899,2]
[312698692,1706157043687,-2025.22,0.00022899,2]
[312698693,1706157043700,-2419.51307253,0.00022899,2]
[312698694,1706157043711,-2343.59286115,0.00022899,2]
[312698695,1706157043731,-1300.1326,0.00022899,2]
[312698696,1706157043744,-510.5000003,0.00022899,2]
[312698697,1706157043755,-1521.56675804,0.00022899,2]
[312698698,1706157044176,-478.22499076,0.00022899,2]
[312698699,1706157044213,-1267.80842534,0.00022899,2]
[312698700,1706157044273,-637.26935831,0.00022899,2]
[312698701,1706157046144,-505.85696838,0.00022899,2]
[312698702,1706157046156,-299.404,0.00022899,2]
[312698703,1706157046311,-2859.71598182,0.00022899,2]
[312698704,1706157393852,205.0,0.00021386,2]
[312698706,1706157863322,363.53,0.00020874,2]
[312698707,1706158081286,500.0,0.00021595,2]
[312698708,1706158113949,205.0,0.00021141,2]
[312698709,1706158143650,1000.0,0.00021692,2]
[312698719,1706158232235,-155.0,0.00021757,2]
[312698720,1706158232248,-155.0,0.00021758,2]
[312698721,1706158232257,-21.62881422,0.00021758,2]
[312698722,1706158232290,-1900.0,0.00021758,2]
[312698723,1706158232301,-2046.24361038,0.00021758,2]
[312698724,1706158232325,-1106.34691818,0.00021758,2]
[312698725,1706158232381,-148.14112809,0.00021758,2]
[312698726,1706158232390,-250.66764355,0.00021759,2]
[312698727,1706158232400,-405.19122836,0.00021759,2]
[312698728,1706158232411,-437.49999993,0.00021759,2]
[312698729,1706158232422,-905.42748473,0.00021759,2]
[312698730,1706158233539,-400.49100595,0.00021759,2]
[312698731,1706158233549,-1.93067405,0.0002176,2]
[312698732,1706158233740,205.0,0.00021141,2]
[312698745,1706158238187,-627.84271552,0.0002176,2]
[312698746,1706158238197,-156.36279395,0.00021767,2]
[312698753,1706158238249,-12.48720605,0.00021767,2]
[312698754,1706158238261,-250.0,0.00021771,2]
[312698755,1706158238270,-300.0,0.00021861,2]
[312698756,1706158238279,-12.5001621,0.00021861,2]
[312698757,1706158238290,-137.4998379,0.00021861,2]
[312698758,1706158238299,-902.8,0.00021865,2]
[312698759,1706158238307,-204.66,0.00021918,2]
[312698760,1706158238316,-415.53,0.00022067,2]
[312698761,1706158238325,-307.23,0.00022104,2]
[312698762,1706158238335,-4285.93393201,0.00022144,2]
[312698763,1706158238350,-648.5229323,0.00022144,2]
[312698764,1706158238361,-1036.00466843,0.00022144,2]
[312698765,1706158238373,-627.74580422,0.00022144,2]
[312698766,1706158238384,-258.61400001,0.00022144,2]
[312698767,1706158238469,-2578.65866303,0.00022144,2]
[312698768,1706158238478,-499.99,0.00022144,2]
[312698769,1706158238487,-1506.88,0.00022144,2]
[312698770,1706158238496,-162.89992446,0.00022163,2]
[312698771,1706158238507,-3446.15,0.00022163,2]
[312698772,1706158238517,-677.36,0.00022163,2]
[312698773,1706158238526,-924.9,0.00022225,2]
[312698774,1706158238534,-515.28,0.00022225,2]
[312698775,1706158238544,-619.2,0.00022225,2]
[312698776,1706158238553,-1134.11,0.00022237,2]
[312698778,1706158238562,-1183.16,0.00022237,2]
[312698780,1706158238572,-4642.46190579,0.00022262,2]
[312698782,1706158238582,-714.7,0.0002238,2]
[312698783,1706158238592,-12000.0,0.000225,2]
[312698784,1706158238601,-150.0,0.00022558,2]
[312698785,1706158238611,-902.8,0.00022674,2]
[312698786,1706158238620,-2093.2964,0.00022699,2]
[312698787,1706158238629,-1047.5073,0.00022699,2]
[312698788,1706158238638,-1408.2361,0.00022699,2]
[312698789,1706158238647,-1639.54290382,0.00022699,2]
[312698790,1706158238656,-200.0,0.00022704,2]
[312698791,1706158238665,-7272.819399,0.00022787,2]
[312698792,1706158238677,-10386.89114725,0.00022787,2]
[312698793,1706158238686,-167.29,0.00022791,2]
[312698794,1706158238695,-963.81,0.00022791,2]
[312698795,1706158238704,-1792.19,0.00022791,2]
[312698796,1706158238713,-2000.0,0.00022791,2]
[312698797,1706158238723,-45179.20373669,0.00022799,2]
[312698798,1706158238735,-54820.79626331,0.00022799,2]
[312698799,1706158238746,-7526.68266307,0.00022799,2]
[312698800,1706158238817,-4985.90263813,0.00022799,2]
[312698801,1706158238827,-548.13375952,0.00022799,2]
[312698805,1706158240737,-452.25615153,0.00022799,2]
[312698806,1706158240751,-359.45574608,0.00022799,2]
[312698807,1706158241342,-1604.28642589,0.00022799,2]
[312698808,1706158241353,-251.58,0.00022799,2]
[312698809,1706158241405,-4991.75654976,0.00022799,2]
[312698810,1706158241468,-3143.67720964,0.00022799,2]
[312698811,1706158241480,-5905.04663677,0.00022799,2]
[312698812,1706158241492,-1642.9,0.00022799,2]
[312698813,1706158241504,-1077.06029718,0.00022799,2]
[312698814,1706158241552,-322.25706152,0.00022799,2]
[312698877,1706158243909,-16541.04783818,0.00022799,2]
[312698879,1706158244002,-3259.37755307,0.00022799,2]
[312698880,1706158244014,-9101.93751243,0.00022799,2]
[312698881,1706158244081,-359.73856219,0.00022799,2]
[312698882,1706158244092,-672.27438761,0.00022799,2]
[312698883,1706158244112,-878.49394085,0.00022799,2]
[312698884,1706158244123,-53879.01035237,0.00022799,2]
[312698885,1706158244134,-701.33067573,0.00022799,2]
[312698886,1706158244157,-862.22082689,0.00022799,2]
[312698887,1706158244169,-2563.57660279,0.00022799,2]
[312698888,1706158244180,-70851.29122396,0.00022799,2]
[312698889,1706158244282,-10377.2999204,0.00022799,2]
[312698899,1706158246307,-216.3695052,0.00022798,2]
[312698900,1706158246316,-166.73652709,0.00022798,2]
[312698903,1706158246370,-411.32766298,0.00022798,2]
[312698904,1706158246380,-155.0,0.00022798,2]
[312698905,1706158246389,-60.53718147,0.00022799,2]
[312698906,1706158246435,-328.8000002,0.00022799,2]
[312699090,1706158263949,205.0,0.00021141,2]
[312699091,1706158755173,458.47,0.00019749,2]
[312699092,1706158760532,478.52,0.00021641,2]
[312699093,1706158812642,602.52,0.00021644,2]
[312699094,1706158830102,1808.57,0.00021611,2]
[312699095,1706158830496,346.2,0.00021611,2]
[312699096,1706158833926,205.0,0.00020992,2]
[312699097,1706158893734,205.0,0.00020992,2]
[312699098,1706158906255,208.37,0.00021586,2]
[312699099,1706158912230,176.54,0.00021699,2]
[312699100,1706158924921,205.0,0.00020992,2]
[312699102,1706158977479,956.11,0.00021595,2]
[312699103,1706158980945,664.98,0.00021609,2]
[312699104,1706158987018,1560.16,0.00021613,2]
[312699105,1706158991403,1771.92421568,0.00021292,2]
[312699106,1706159061177,167.81,0.00021542,2]
[312699107,1706159108934,800.0,0.00021533,2]
[312699108,1706159177715,250.0,0.0002155,2]
[312699109,1706159193736,205.0,0.00021385,2]
[312699110,1706159242116,505.18,0.00019662,2]
[312699111,1706159252409,200.0,0.00021563,2]
[312699112,1706159262490,1763.73,0.00021644,2]
[312699113,1706159265701,365.69,0.00021563,2]
[312699114,1706159327421,2284.35,0.00021572,2]
[312699115,1706159359096,-2506.67933284,0.0002171,2]
[312699116,1706159359119,-247.03342612,0.0002171,2]
[312699117,1706159359138,-150.0,0.00021716,2]
[312699118,1706159359160,-150.0,0.00021716,2]
[312699119,1706159359179,-36.98074104,0.00021717,2]
[312699139,1706159431372,-2692.06977532,0.00021716,2]
[312699141,1706159431385,-1172.82755032,0.00021716,2]
[312699142,1706159431395,-1336.56925896,0.00021717,2]
[312699143,1706159431404,-127.03791907,0.00021764,2]
[312699144,1706159431602,-33.94781224,0.00021764,2]
[312699145,1706159431611,-200.0,0.00021766,2]
[312699146,1706159431621,-30.60218776,0.00021775,2]
[312699147,1706159431633,-119.46781224,0.00021775,2]
[312699148,1706159431642,-150.07,0.00021888,2]
[312699149,1706159431651,-505.18,0.00021926,2]
[312699150,1706159431661,-746.3320946,0.00022002,2]
[312699151,1706159431689,-440.50048215,0.00022002,2]
[312699177,1706159437365,-250.49233857,0.00022002,2]
[312699180,1706159437476,-2086.42365342,0.00022002,2]
[312699181,1706159437533,-735.86914343,0.00022002,2]
[312699182,1706159437545,-5740.37228783,0.00022002,2]
[312699183,1706159437555,-688.07,0.00022002,2]
[312699184,1706159437565,-150.07,0.00022002,2]
[312699185,1706159437575,-5667.92,0.00022013,2]
[312699186,1706159437584,-150.07,0.00022115,2]
[312699187,1706159437594,-304.47,0.00022181,14]
[312699188,1706159437603,-1049.85,0.00022181,2]
[312699189,1706159437612,-499.99,0.00022181,2]
[312699190,1706159437622,-150.07,0.00022228,2]
[312699191,1706159437631,-176.54,0.00022247,2]
[312699192,1706159437640,-715.74,0.00022321,2]
[312699193,1706159437650,-150.07,0.00022342,2]
[312699194,1706159437659,-733.46,0.00022414,2]
[312699195,1706159437669,-1763.73,0.00022445,2]
[312699196,1706159437679,-150.07,0.00022455,2]
[312699197,1706159437688,-723.18,0.00022536,2]
[312699198,1706159437698,-716.11,0.00022547,2]
[312699199,1706159437709,-726.83,0.00022547,2]
[312699201,1706159437718,-718.45,0.00022547,2]
[312699202,1706159437727,-718.33,0.00022547,2]
[312699203,1706159437738,-714.15,0.00022547,2]
[312699204,1706159437747,-150.07,0.00022569,2]
[312699205,1706159437759,-223.20438967,0.00022569,4]
[312699206,1706159437768,-4774.3556,0.00022599,2]
[312699208,1706159437778,-1028.70634633,0.0002265,2]
[312699211,1706159437792,-247.74563494,0.00022681,2]
[312699213,1706159437801,-1276.8067786,0.00022681,2]
[312699215,1706159437811,-289.49755553,0.00022682,2]
[312699217,1706159437820,-289.49755553,0.00022682,2]
[312699219,1706159437830,-289.49755553,0.00022682,2]
[312699221,1706159437840,-289.49755553,0.00022682,2]
[312699223,1706159437849,-289.49755553,0.00022682,2]
[312699225,1706159437858,-289.49755553,0.00022682,2]
[312699227,1706159437867,-289.49755553,0.00022682,2]
[312699229,1706159437876,-289.49755553,0.00022682,2]
[312699231,1706159437886,-289.49755553,0.00022682,2]
[312699233,1706159437895,-289.49755553,0.00022682,2]
[312699235,1706159437906,-289.49755553,0.00022682,2]
[312699237,1706159437915,-289.49755553,0.00022682,2]
[312699239,1706159437948,-289.49755553,0.00022682,2]
[312699240,1706159437972,-289.49755553,0.00022682,2]
[312699243,1706159437982,-289.49755553,0.00022682,2]
[312699245,1706159437991,-289.49755553,0.00022682,2]
[312699247,1706159438001,-289.49755553,0.00022682,2]
[312699249,1706159438011,-289.49755553,0.00022682,2]
[312699251,1706159438020,-289.49755553,0.00022682,2]
[312699253,1706159438030,-289.49755553,0.00022682,2]
[312699255,1706159438040,-289.49755553,0.00022682,2]
[312699257,1706159438050,-289.49755553,0.00022682,2]
[312699259,1706159438059,-289.49755553,0.00022682,2]
[312699260,1706159438069,-289.49755553,0.00022682,2]
[312699262,1706159438078,-289.49755553,0.00022682,2]
[312699264,1706159438087,-289.49755553,0.00022682,2]
[312699266,1706159438097,-289.49755553,0.00022682,2]
[312699268,1706159438106,-289.49755553,0.00022682,2]
[312699270,1706159438116,-289.49755553,0.00022682,2]
[312699272,1706159438125,-289.49755553,0.00022682,2]
[312699273,1706159438134,-289.49755553,0.00022682,2]
[312699275,1706159438148,-289.49755553,0.00022682,2]
[312699277,1706159438158,-289.49755553,0.00022682,2]
[312699279,1706159438171,-289.49755553,0.00022682,2]
[312699281,1706159438182,-289.49755553,0.00022682,2]
[312699283,1706159438191,-150.07,0.00022682,2]
[312699285,1706159438201,-64442.10694554,0.00022699,2]
[312699289,1706159438230,-26825.13555446,0.00022699,2]
[312699291,1706159438239,-176.54,0.00022795,2]
[312699293,1706159438249,-150.07,0.00022796,2]
[312699295,1706159438258,-1388.72001764,0.00022797,2]
[312699297,1706159438268,-218.13401522,0.00022798,2]
[312699300,1706159438279,-177.15501129,0.00022798,2]
[312699301,1706159438288,-2234.53114436,0.00022798,2]
[312699303,1706159438297,-1000.0,0.000228,2]
[312699304,1706159438307,-205.0,0.00022815,4]
[312699305,1706159438316,-1134.7716162,0.00022896,2]
[312699306,1706159438325,-523.90903147,0.00022897,2]
[312699307,1706159438334,-1248.75449278,0.00022898,2]
[312699308,1706159438344,-6366.26481968,0.00022898,2]
[312699309,1706159438353,-2000.0,0.00022899,2]
[312699310,1706159438362,-245000.0,0.000229,2]
[312699311,1706159438372,-500.0,0.000229,2]
[312699312,1706159438381,-150.07,0.00022909,2]
[312699313,1706159438391,-50436.22120125,0.00023,2]
[312699314,1706159438400,-943.97973617,0.00023,2]
[312699315,1706159438410,-150.0,0.00023,2]
[312699316,1706159438419,-1028.70634633,0.00023176,2]
[312699318,1706159438428,-2284.35,0.00023216,2]
[312699320,1706159438438,-1763.73,0.00023245,2]
[312699322,1706159438447,-176.54,0.00023343,2]
[312699324,1706159438457,-800.0,0.00023562,2]
[312699326,1706159438466,-210.0,0.00023888,2]
[312699328,1706159438475,-176.54,0.00023891,2]
[312699330,1706159438485,-1763.73,0.00024046,2]
[312699332,1706159438494,-505.18,0.0002419,2]
[312699334,1706159438505,-800.0,0.00024225,2]
[312699336,1706159438514,-205.0,0.00024245,6]
[312699339,1706159438524,-176.54,0.00024439,2]
[312699341,1706159438534,-200.0,0.00024487,2]
[312699343,1706159438543,-250.0,0.00024658,2]
[312699345,1706159438552,-1763.73,0.00024847,2]
[312699347,1706159438562,-2284.35,0.0002486,2]
[312699349,1706159438571,-176.54,0.00024987,2]
[312699351,1706159438581,-450.0,0.00025,3]
[312699353,1706159438590,-387.62224241,0.00025,2]
[312699355,1706159438599,-202.84481839,0.00025,2]
[312699357,1706159438610,-159.14140732,0.00025,2]
[312699359,1706159438620,-176.54,0.00025535,2]
[312699361,1706159438629,-205.0,0.00025675,8]
[312699363,1706159438638,-208.37,0.00025903,2]
[312699365,1706159438647,-500.0,0.00026,2]
[312699367,1706159438657,-268.99470405,0.00026083,2]
[312699369,1706159438669,-32152.0,0.00026243,2]
[312699371,1706159438678,-160.98573129,0.00026373,2]
[312699373,1706159438688,-505.18,0.00026454,2]
[312699375,1706159438697,-2284.35,0.00026504,2]
[312699377,1706159438707,-2590.15,0.00026575,2]
[312699379,1706159438716,-491.16,0.00026575,2]
[312699381,1706159438725,-233.34,0.00026575,2]
[312699383,1706159438735,-800.0,0.00026917,2]
[312699386,1706159438744,-167.81,0.00026928,2]
[312699387,1706159438754,-500.0,0.00027,3]
[312699390,1706159438763,-165.74290237,0.00027,2]
[312699392,1706159438772,-205.0,0.00027106,10]
[312699394,1706159438781,-200.0,0.00027208,2]
[312699396,1706159438791,-500.0,0.00027397,2]
[312699398,1706159438799,-165.27,0.00027397,2]
[312699400,1706159438808,-264.41,0.00027397,2]
[312699402,1706159438817,-584.55,0.00027397,2]
[312699405,1706159438836,-584.55,0.00027556,2]
[312699407,1706159438847,-264.41,0.00027686,2]
[312699409,1706159438857,-584.55,0.00027714,2]
[312699411,1706159438867,-584.55,0.00027872,2]
[312699413,1706159438876,-264.41,0.00027974,2]
[312699415,1706159438886,-584.55,0.0002803,2]
[312699417,1706159438895,-2284.35,0.00028148,2]
[312699419,1706159438904,-165.27,0.0002818,2]
[312699421,1706159438914,-584.55,0.00028189,2]
[312699423,1706159438924,-3226.0,0.000282,2]
[312699425,1706159438933,-10013.0,0.000282,2]
[312699452,1706159439167,-1399.96,0.00028203,2]
[312699455,1706159439177,-2379.58,0.00028203,2]
[312699457,1706159439186,-264.41,0.00028262,2]
[312699459,1706159439196,-584.55,0.00028347,2]
[312699461,1706159439205,-584.55,0.00028505,2]
[312699463,1706159439215,-205.0,0.00028536,12]
[312699465,1706159439225,-264.41,0.00028551,2]
[312699468,1706159439234,-584.55,0.00028664,2]
[312699470,1706159439244,-505.18,0.00028718,2]
[312699472,1706159439252,-584.55,0.00028822,2]
[312699474,1706159439261,-264.41,0.00028839,2]
[312699476,1706159439271,-165.27,0.00028963,2]
[312699478,1706159439281,-550.0,0.00029,3]
[312699480,1706159439291,-270.85972307,0.00029,7]
[312699482,1706159439300,-150.0,0.00029,20]
[312699484,1706159439309,-264.41,0.00029128,2]
[312699486,1706159439318,-264.41,0.00029416,2]
[312699488,1706159439327,-800.0,0.00029608,2]
[312699490,1706159439336,-264.41,0.00029704,2]
[312699492,1706159439345,-165.27,0.00029746,2]
[312699494,1706159439355,-2284.35,0.00029791,2]
[312699496,1706159439365,-500.0,0.000299,10]
[312699498,1706159439374,-200.0,0.00029929,2]
[312699500,1706159439383,-205.0,0.00029966,14]
[312699502,1706159439392,-264.41,0.00029993,2]
[312699504,1706159439402,-541.10677632,0.00029999,2]
[312699506,1706159439411,-155.0,0.0003,2]
[312699508,1706159439420,-512.04453184,0.0003,2]
[312699510,1706159439429,-309374.29947113,0.0003,4]
[312699512,1706159439438,-694.51811641,0.0003,2]
[312699513,1706159439447,-45536.370379,0.0003,4]
[312699515,1706159439457,-12551.99827427,0.0003,4]
[312699517,1706159439466,-9652.53351491,0.0003,2]
[312699519,1706159439475,-583.45307407,0.0003,2]
[312699521,1706159439484,-408.52199517,0.0003,2]
[312699523,1706159439494,-408.52199517,0.0003,2]
[312699525,1706159439503,-408.52199517,0.0003,2]
[312699527,1706159439512,-3000.0,0.0003,2]
[312699529,1706159439521,-3000.0,0.0003,2]
[312699531,1706159439531,-3000.0,0.0003,2]
[312699533,1706159439540,-3000.0,0.0003,2]
[312699535,1706159439550,-3000.0,0.0003,2]
[312699537,1706159439559,-157.357135,0.0003,2]
[312699539,1706159439568,-154.4,0.00030137,2]
[312699541,1706159439577,-365.69,0.00030188,2]
[312699544,1706159439590,-264.41,0.00030281,2]
[312699546,1706159439600,-233.9453121,0.0003037,20]
[312699548,1706159439609,-3000.0,0.0003051,2]
[312699550,1706159439619,-165.27,0.00030528,2]
[312699552,1706159439628,-264.41,0.00030569,2]
[312699554,1706159439637,-264.41,0.00030858,2]
[312699556,1706159439647,-160.98573129,0.00030981,2]
[312699558,1706159439657,-505.18,0.00030982,2]
[312699559,1706159439667,-600.0,0.00031,3]
[312699562,1706159439676,-264.41,0.00031146,2]
[312699563,1706159439686,-165.27,0.00031311,2]
[312699566,1706159439696,-205.0,0.00031396,17]
[312699568,1706159439706,-1019.0,0.000314,2]
[312699570,1706159439715,-264.41,0.00031435,2]
[312699572,1706159439724,-197.92,0.00031644,2]
[312699574,1706159439734,-180.0,0.00031644,2]
[312699576,1706159439744,-264.41,0.00031723,2]
[312699578,1706159439752,-3148.06156869,0.00031797,2]
[312699580,1706159439762,-304670.065251,0.000318,2]
[312699582,1706159439771,-152.88280839,0.0003189,2]
[312699584,1706159439782,-1100.0,0.000319,11]
[312699586,1706159439792,-154.4,0.00031963,2]
[312699588,1706159439801,-170.64638635,0.00031994,3]
[312699590,1706159439810,-750.0,0.00032,5]
[312699592,1706159439820,-3821.00997196,0.00032,2]
[312699594,1706159439829,-1962.48471159,0.00032,2]
[312699596,1706159439838,-129846.73794459,0.00032,2]
[312699598,1706159439848,-264.41,0.00032011,2]
[312699600,1706159439857,-165.27,0.00032094,2]
[312699602,1706159439867,-264.41,0.000323,2]
[312699604,1706159439877,-800.0,0.000323,2]
[312699606,1706159439887,-167.81,0.00032314,2]
[312699608,1706159439896,-155.82477594,0.000325,2]
[312699610,1706159439906,-264.41,0.00032588,2]
[312699612,1706159439916,-200.0,0.0003265,2]
[312699614,1706159439926,-205.0,0.00032826,19]
[312699616,1706159439936,-152.88280836,0.00032847,2]
[312699618,1706159439946,-264.41,0.00032877,2]
[312699620,1706159439955,-165.27,0.00032877,2]
[312699622,1706159439965,-166.77,0.00032877,2]
[312699624,1706159439975,-193.26,0.00032877,15]
[312699626,1706159439985,-282.31612789,0.00033,4]
[312699628,1706159439995,-960.32677932,0.00033,2]
[312699630,1706159440005,-650.0,0.00033,3]
[312699632,1706159440015,-505.18,0.00033246,2]
[312699634,1706159440025,-7999.99,0.000335,14]